fUSD/lending_fUSD_20250905
["ID","MTS","AMOUNT","RATE_DAILY","PERIOD"]
[383768816,1757109271944,-8442.03,0.00041643,120]
[383768817,1757109271953,-436.72,0.00041643,120]
[383768818,1757109271962,-443.36,0.00041643,120]
[383768819,1757109271971,-621.71,0.00041643,120]
[383768820,1757109271980,-400.0,0.00041643,120]
[383768821,1757109271989,-406.08,0.00041643,120]
[383768822,1757109271998,-400.0,0.00041643,120]
[383768823,1757109272009,-1439.09,0.00041643,120]
[383768824,1757109272018,-475.57,0.00041643,120]
[383768825,1757109272027,-2688.71,0.00041643,118]
[383768826,1757109272037,-530.86,0.00041643,120]
[383768827,1757109272047,-1300.45,0.00041643,120]
[383768828,1757109272056,-423.37,0.00041643,120]
[383768829,1757109272065,-442.37,0.00041643,120]
[383768830,1757109272075,-425.64,0.00041643,120]
[383768831,1757109272086,-393.72417928,0.00041643,120]
[383768832,1757109272096,-4723.5,0.00041643,120]
[383768833,1757109272105,-514.62,0.00041643,120]
[383768834,1757109272114,-446.4,0.00041643,120]
[383768835,1757109272123,-783.27,0.00041643,120]
[383768836,1757109272132,-425.55,0.00041643,120]
[383768837,1757109272141,-440.05,0.00041643,120]
[383768838,1757109272150,-300.66166556,0.00041643,120]
[383768839,1757109272159,-483.04,0.00041643,120]
[383768840,1757109272169,-599.12,0.00041643,120]
[383768841,1757109272178,-483.3,0.00041643,120]
[383768842,1757109272187,-677.0,0.00041643,120]
[383768843,1757109272196,-1085.17,0.00041643,120]
[383768844,1757109272206,-3844.91,0.00041643,120]
[383768845,1757109272215,-1689.46,0.00041643,120]
[383768846,1757109272224,-421.08,0.00041643,120]
[383768847,1757109272233,-877.43,0.00041643,120]
[383768848,1757109272242,-537.76,0.00041643,120]
[383768849,1757109272251,-436.27,0.00041643,120]
[383768850,1757109272260,-479.41,0.00041643,120]
[383768851,1757109272269,-931.34,0.00041643,120]
[383768852,1757109272279,-2095.01,0.00041643,120]
[383768853,1757109272288,-434.12,0.00041643,120]
[383768854,1757109272297,-1265.08,0.00041643,120]
[383768855,1757109272306,-828.12,0.00041643,120]
[383768856,1757109272315,-490.29,0.00041643,120]
[383768857,1757109272325,-407.95,0.00041643,120]
[383768858,1757109272334,-445.3,0.00041643,120]
[383768859,1757109272343,-1988.71,0.00041643,120]
[383768860,1757109272352,-400.0,0.00041643,120]
[383768861,1757109272361,-531.57,0.00041643,120]
[383768862,1757109272370,-428.34,0.00041643,120]
[383768863,1757109272379,-401.29,0.00041643,120]
[383768864,1757109272388,-720.58,0.00041643,120]
[383768865,1757109272398,-413.33,0.00041643,120]
[383768866,1757109272407,-1987.61,0.00041643,120]
[383768867,1757109272415,-400.0,0.00041643,120]
[383768868,1757109272424,-174.30942524,0.00041643,120]
[383768869,1757109272433,-471.02,0.00041643,120]
[383768870,1757109272442,-2254.56,0.00041643,14]
[383768871,1757109272451,-786.84,0.00041643,120]
[383768872,1757109272460,-400.0,0.00041643,120]
[383768873,1757109272469,-1906.65,0.00041643,120]
[383768874,1757109272478,-3337.86,0.00041643,120]
[383768875,1757109272487,-404.67,0.00041643,120]
[383768876,1757109272496,-511.96,0.00041643,120]
[383768877,1757109272505,-911.18,0.00041643,120]
[383768878,1757109272514,-516.46,0.00041643,120]
[383768879,1757109272523,-488.47,0.00041643,120]
[383768880,1757109272533,-1977.28,0.00041643,120]
[383768881,1757109272542,-400.0,0.00041643,120]
[383768882,1757109272551,-457.95,0.00041643,120]
[383768883,1757109272561,-527.02,0.00041643,120]
[383768884,1757109272570,-689.76,0.00041643,120]
[383768885,1757109272579,-697.63,0.00041643,120]
[383768886,1757109272588,-433.65,0.00041643,120]
[383768887,1757109272598,-419.06,0.00041643,120]
[383768888,1757109272607,-436.45,0.00041643,60]
[383768889,1757109272616,-6963.13,0.00041643,120]
[383768890,1757109272626,-1232.95,0.00041643,120]
[383768891,1757109272635,-618.53,0.00041643,120]
[383768892,1757109272644,-1000.0,0.00041644,10]
[383768893,1757109272653,-150.0,0.00041653,120]
[383768894,1757109272661,-1178.96147,0.00041688,30]
[383768895,1757109272670,-1000.0,0.00041699,60]
[383768896,1757109272680,-153.0,0.000417,120]
[383768897,1757109272689,-2400.0,0.00041712,60]
[383768898,1757109272698,-800.0,0.00041712,60]
[383768899,1757109272708,-500.0,0.00041712,60]
[383768900,1757109272717,-397.9282945,0.00041724,2]
[383768901,1757109272727,-279.1310026,0.00041724,2]
[383768902,1757109272736,-243.5628306,0.00041727,2]
[383768903,1757109272745,-1000.0,0.0004188,120]
[383768904,1757109272754,-165.0,0.00041885,90]
[383768905,1757109272763,-1178.96147,0.00041888,30]
[383768906,1757109272773,-339.30249,0.00041917,120]
[383768907,1757109272783,-634.468343,0.00041917,120]
[383768908,1757109272793,-417.86,0.00041917,120]
[383768909,1757109272803,-400.0,0.00041917,120]
[383768910,1757109272813,-193.1884949,0.00041917,120]
[383768911,1757109272824,-289.75421571,0.00041917,120]
[383768912,1757109272834,-944.78449234,0.00041917,120]
[383768913,1757109272844,-245.71487051,0.00041917,120]
[383768914,1757109272854,-846.24285936,0.00041917,120]
[383768915,1757109272864,-565.0863254,0.00041917,120]
[383768916,1757109272874,-765.81821403,0.00041917,120]
[383768917,1757109272884,-433.41,0.00041917,120]
[383768918,1757109272893,-1155.78973926,0.00041917,120]
[383768919,1757109272904,-299.79,0.00041917,31]
[383768920,1757109273088,-405.38,0.00041917,120]
[383768921,1757109273104,-678.48058333,0.00041917,120]
[383768922,1757109273114,-414.20773672,0.00041917,120]
[383768923,1757109273123,-413.32,0.00041917,120]
[383768924,1757109273133,-418.15500472,0.00041917,120]
[383768925,1757109273143,-420.37980768,0.00041917,120]
[383768926,1757109273153,-437.98,0.00041917,120]
[383768927,1757109273163,-506.43659868,0.00041917,120]
[383768928,1757109273174,-438.07348827,0.00041917,120]
[383768929,1757109273184,-451.29,0.00041917,120]
[383768930,1757109273194,-508.01273226,0.00041917,120]
[383768931,1757109273205,-461.56,0.00041917,120]
[383768932,1757109273214,-458.90075744,0.00041917,120]
[383768933,1757109273224,-428.61916833,0.00041917,120]
[383768934,1757109273234,-1054.5310731,0.00041917,120]
[383768935,1757109273244,-409.63862833,0.00041917,120]
[383768936,1757109273253,-204.21445162,0.00041917,120]
[383768937,1757109273263,-542.35692998,0.00041917,120]
[383768938,1757109273272,-508.40843775,0.00041917,120]
[383768939,1757109273283,-191.05,0.00041917,120]
[383768940,1757109273292,-493.8430363,0.00041917,120]
[383768941,1757109273302,-425.3431565,0.00041917,120]
[383768942,1757109273311,-518.36007894,0.00041917,120]
[383768943,1757109273321,-510.2260463,0.00041917,120]
[383768944,1757109273330,-449.5,0.00041917,120]
[383768945,1757109273340,-414.67351715,0.00041917,120]
[383768946,1757109273349,-153.113189,0.00041917,120]
[383768947,1757109273359,-970.95974106,0.00041917,120]
[383768948,1757109273369,-490.85168207,0.00041917,120]
[383768949,1757109273378,-436.84706743,0.00041917,120]
[383768950,1757109273387,-415.12,0.00041917,120]
[383768951,1757109273397,-447.93,0.00041917,120]
[383768952,1757109273407,-647.70114236,0.00041917,120]
[383768953,1757109273416,-425.66,0.00041917,120]
[383768954,1757109273426,-490.6,0.00041917,120]
[383768955,1757109273435,-641.54082057,0.00041917,120]
[383768956,1757109273445,-401.87670852,0.00041917,120]
[383768957,1757109273455,-419.32288146,0.00041917,120]
[383768958,1757109273464,-403.8,0.00041917,120]
[383768959,1757109273474,-548.63661067,0.00041917,120]
[383768960,1757109273484,-452.76053215,0.00041917,120]
[383768961,1757109273494,-440.56128306,0.00041917,120]
[383768962,1757109273504,-679.14,0.00041917,120]
[383768963,1757109273514,-433.63,0.00041917,120]
[383768964,1757109273523,-277.22196474,0.00041917,120]
[383768965,1757109273533,-589.26589529,0.00041917,120]
[383768966,1757109273543,-551.17143856,0.00041917,120]
[383768967,1757109273554,-416.0473287,0.00041917,120]
[383768968,1757109273563,-577.00515941,0.00041917,120]
[383768969,1757109273573,-455.57,0.00041917,120]
[383768970,1757109273583,-410.33,0.00041917,120]
[383768971,1757109273592,-497.74,0.00041917,120]
[383768972,1757109273602,-498.16497934,0.00041917,120]
[383768973,1757109273612,-878.17888493,0.00041917,120]
[383768974,1757109273622,-1227.64933602,0.00041917,120]
[383768975,1757109273632,-602.01056642,0.00041917,120]
[383768976,1757109273642,-404.93,0.00041917,120]
[383768977,1757109273652,-414.05296179,0.00041917,120]
[383768978,1757109273662,-562.18693405,0.00041917,120]
[383768979,1757109273671,-457.15048429,0.00041917,120]
[383768980,1757109273680,-519.47703938,0.00041917,120]
[383768981,1757109273690,-464.21620215,0.00041917,120]
[383768982,1757109273700,-509.63436595,0.00041917,120]
[383768983,1757109273710,-177.25950798,0.00041917,120]
[383768984,1757109273720,-536.94393263,0.00041917,120]
[383768985,1757109273729,-456.48944636,0.00041917,120]
[383768986,1757109273739,-1325.15675549,0.00041917,120]
[383768987,1757109273749,-662.36180892,0.00041917,120]
[383768988,1757109273759,-475.53203838,0.00041917,120]
[383768989,1757109273768,-580.6241268,0.00041917,120]
[383768990,1757109273778,-468.25483748,0.00041917,120]
[383768991,1757109273788,-504.29833823,0.00041917,30]
[383768992,1757109273797,-470.9344414,0.00041917,120]
[383768993,1757109273807,-417.75712337,0.00041917,120]
[383768994,1757109273817,-406.0624381,0.00041917,120]
[383768995,1757109273826,-561.09,0.00041917,120]
[383768996,1757109273836,-671.49031638,0.00041917,120]
[383768997,1757109273846,-660.55,0.00041917,120]
[383768998,1757109273856,-505.72136292,0.00041917,120]
[383768999,1757109273866,-493.7,0.00041917,120]
[383769000,1757109273875,-385.77,0.00041917,120]
[383769001,1757109273886,-556.1065989,0.00041917,120]
[383769002,1757109273896,-514.8,0.00041917,120]
[383769003,1757109273906,-456.14042854,0.00041917,120]
[383769004,1757109273916,-1553.42424595,0.00041917,120]
[383769005,1757109273925,-737.79320987,0.00041917,120]
[383769006,1757109273935,-521.95390139,0.00041917,120]
[383769007,1757109273945,-418.86,0.00041917,120]
[383769008,1757109273956,-583.83361102,0.00041917,120]
[383769009,1757109273966,-498.77,0.00041917,120]
[383769010,1757109273975,-430.43,0.00041917,120]
[383769011,1757109273984,-579.89729843,0.00041917,120]
[383769012,1757109273995,-425.52,0.00041917,120]
[383769013,1757109274004,-691.42028107,0.00041917,120]
[383769014,1757109274017,-601.1239311,0.00041917,120]
[383769015,1757109274027,-401.27075507,0.00041917,120]
[383769016,1757109274037,-1060.60275518,0.00041917,120]
[383769017,1757109274046,-487.29678274,0.00041917,120]
[383769018,1757109274056,-565.14950608,0.00041917,120]
[383769019,1757109274067,-607.95567129,0.00041917,120]
[383769020,1757109274077,-408.3,0.00041917,120]
[383769021,1757109274087,-599.3437625,0.00041917,120]
[383769022,1757109274097,-643.23213097,0.00041917,120]
[383769023,1757109274106,-330.68522314,0.00041917,120]
[383769024,1757109274116,-567.32361429,0.00041917,120]
[383769025,1757109274125,-587.9,0.00041917,120]
[383769026,1757109274135,-649.57223067,0.00041917,120]
[383769027,1757109274145,-444.13,0.00041917,120]
[383769028,1757109274155,-540.56210724,0.00041917,120]
[383769029,1757109274164,-522.07431726,0.00041917,120]
[383769030,1757109274174,-577.57131972,0.00041917,120]
[383769031,1757109274184,-456.01660249,0.00041917,120]
[383769032,1757109274193,-606.20116151,0.00041917,120]
[383769033,1757109274202,-552.91358404,0.00041917,120]
[383769034,1757109274211,-738.23,0.00041917,120]
[383769035,1757109274221,-288.05,0.00041917,120]
[383769036,1757109274230,-331.30133617,0.00041917,120]
[383769037,1757109274239,-485.14,0.00041917,120]
[383769038,1757109274248,-497.94526081,0.00041917,120]
[383769039,1757109274258,-534.69014736,0.00041917,120]
[383769040,1757109274267,-434.23918486,0.00041917,120]
[383769041,1757109274276,-697.37688208,0.00041917,120]
[383769042,1757109274286,-588.43491863,0.00041917,120]
[383769043,1757109274295,-467.98,0.00041917,120]
[383769044,1757109274304,-261.07063304,0.00041917,120]
[383769045,1757109274314,-327.77198124,0.00041917,120]
[383769046,1757109274323,-435.08115179,0.00041917,120]
[383769047,1757109274333,-547.37,0.00041917,120]
[383769048,1757109274342,-9387.39657661,0.00041917,120]
[383769049,1757109274351,-438.33814986,0.00041917,120]
[383769050,1757109274361,-400.68,0.00041917,120]
[383769051,1757109274370,-506.74947866,0.00041917,120]
[383769052,1757109274379,-467.79456029,0.00041917,120]
[383769053,1757109274389,-422.74953741,0.00041917,120]
[383769054,1757109274399,-406.60769967,0.00041917,120]
[383769055,1757109274408,-773.69996338,0.00041917,120]
[383769056,1757109274418,-765.31511319,0.00041917,120]
[383769057,1757109274428,-401.38766781,0.00041917,120]
[383769058,1757109274438,-417.11349179,0.00041917,120]
[383769059,1757109274447,-441.92,0.00041917,120]
[383769060,1757109274458,-553.89248,0.00041917,120]
[383769061,1757109274467,-546.4,0.00041917,120]
[383769062,1757109274476,-441.2,0.00041917,120]
[383769063,1757109274486,-785.71168261,0.00041917,120]
[383769064,1757109274496,-437.96,0.00041917,120]
[383769065,1757109274505,-447.44188813,0.00041917,120]
[383769066,1757109274515,-632.41546976,0.00041917,120]
[383769067,1757109274525,-414.5,0.00041917,120]
[383769068,1757109274535,-981.19971264,0.00041917,120]
[383769069,1757109274544,-569.20396646,0.00041917,120]
[383769070,1757109274553,-543.13303874,0.00041917,120]
[383769071,1757109274564,-414.29,0.00041917,120]
[383769072,1757109274574,-421.01090188,0.00041917,120]
[383769073,1757109274584,-1444.38770845,0.00041917,120]
[383769074,1757109274595,-2516.87779642,0.00041917,120]
[383769075,1757109274604,-442.04506109,0.00041917,120]
[383769076,1757109274614,-488.07068056,0.00041917,120]
[383769077,1757109274623,-587.14329443,0.00041917,120]
[383769078,1757109274633,-627.07121449,0.00041917,120]
[383769079,1757109274642,-447.91133824,0.00041917,120]
[383769080,1757109274651,-2345.13674036,0.00041917,120]
[383769081,1757109274661,-498.21971056,0.00041917,120]
[383769082,1757109274670,-448.81,0.00041917,120]
[383769083,1757109274680,-562.70994402,0.00041917,120]
[383769084,1757109274689,-475.32,0.00041917,120]
[383769085,1757109274698,-576.16759928,0.00041917,120]
[383769086,1757109274708,-459.85260579,0.00041917,120]
[383769087,1757109274717,-547.03249261,0.00041917,120]
[383769088,1757109274727,-543.60187582,0.00041917,120]
[383769089,1757109274736,-495.60624902,0.00041917,120]
[383769090,1757109274747,-584.62373163,0.00041917,120]
[383769091,1757109274756,-551.80493195,0.00041917,120]
[383769092,1757109274766,-445.13321167,0.00041917,120]
[383769093,1757109274776,-618.53288348,0.00041917,120]
[383769094,1757109274786,-2141.21257884,0.00041917,120]
[383769095,1757109274796,-502.53,0.00041917,120]
[383769096,1757109274805,-582.68,0.00041917,120]
[383769097,1757109274815,-494.69145765,0.00041917,120]
[383769098,1757109274824,-884.86155984,0.00041917,120]
[383769099,1757109274835,-492.26,0.00041917,120]
[383769100,1757109274844,-590.87500858,0.00041917,120]
[383769101,1757109274854,-434.35296575,0.00041917,120]
[383769102,1757109274863,-423.04,0.00041917,120]
[383769103,1757109274873,-474.85,0.00041917,120]
[383769104,1757109274882,-1028.14055716,0.00041917,120]
[383769105,1757109274891,-2757.48114788,0.00041917,120]
[383769106,1757109274901,-404.2864715,0.00041917,120]
[383769107,1757109274910,-701.42425393,0.00041917,120]
[383769108,1757109274919,-696.78020368,0.00041917,120]
[383769109,1757109274928,-438.71870262,0.00041917,120]
[383769110,1757109274938,-766.96474866,0.00041917,120]
[383769111,1757109274948,-481.13206498,0.00041917,120]
[383769112,1757109274958,-426.18502867,0.00041917,120]
[383769113,1757109274967,-251.39,0.00041917,120]
[383769114,1757109274976,-443.69338992,0.00041917,120]
[383769115,1757109274986,-266.31,0.00041917,120]
[383769116,1757109274997,-502.17443556,0.00041917,120]
[383769117,1757109275008,-441.82,0.00041917,120]
[383769118,1757109275018,-545.95,0.00041917,120]
[383769119,1757109275028,-545.45,0.00041917,120]
[383769120,1757109275038,-439.95674334,0.00041917,120]
[383769121,1757109275050,-405.1265625,0.00041917,120]
[383769122,1757109275060,-470.74601901,0.00041917,120]
[383769123,1757109275070,-1154.72374946,0.00041917,120]
[383769124,1757109275081,-414.08154289,0.00041917,120]
[383769125,1757109275091,-3534.36609723,0.00041917,120]
[383769126,1757109275102,-466.53364427,0.00041917,120]
[383769127,1757109275112,-486.33,0.00041917,120]
[383769128,1757109275121,-552.16,0.00041917,120]
[383769129,1757109275130,-530.03354487,0.00041917,120]
[383769130,1757109275142,-524.27,0.00041917,120]
[383769131,1757109275152,-836.83275989,0.00041917,120]
[383769132,1757109275163,-647.20425819,0.00041917,120]
[383769133,1757109275172,-531.38,0.00041917,120]
[383769134,1757109275182,-690.63,0.00041917,120]
[383769135,1757109275191,-508.71869489,0.00041917,120]
[383769136,1757109275201,-424.87284559,0.00041917,120]
[383769137,1757109275210,-1609.02790998,0.00041917,90]
[383769138,1757109275220,-496.82398135,0.00041917,120]
[383769139,1757109275230,-414.06878413,0.00041917,120]
[383769140,1757109275604,-245.36,0.00041917,120]
[383769141,1757109275614,-983.93549488,0.00041917,120]
[383769142,1757109275624,-522.50274539,0.00041917,120]
[383769143,1757109275633,-2782.96292521,0.00041917,120]
[383769144,1757109275643,-650.76498819,0.00041917,120]
[383769145,1757109275652,-1361.40487521,0.00041917,120]
[383769146,1757109275661,-436.27654186,0.00041917,120]
[383769147,1757109275671,-649.04,0.00041917,120]
[383769148,1757109275681,-442.39,0.00041917,120]
[383769149,1757109275692,-474.25913461,0.00041917,120]
[383769150,1757109275703,-603.33783397,0.00041917,120]
[383769151,1757109275712,-407.2,0.00041917,120]
[383769152,1757109275722,-8442.23218864,0.00041917,120]
[383769153,1757109275731,-436.83,0.00041917,120]
[383769154,1757109275741,-443.37167453,0.00041917,120]
[383769155,1757109275751,-621.86888604,0.00041917,120]
[383769156,1757109275761,-391.38291983,0.00041917,120]
[383769157,1757109275772,-406.1892081,0.00041917,120]
[383769158,1757109275781,-216.83389397,0.00041917,120]
[383769159,1757109275791,-1439.20518694,0.00041917,120]
[383769160,1757109275800,-475.6,0.00041917,120]
[383769161,1757109275810,-2688.92496019,0.00041917,118]
[383769162,1757109275819,-531.09,0.00041917,120]
[383769163,1757109275829,-1300.56282595,0.00041917,120]
[383769164,1757109275840,-423.6,0.00041917,120]
[383769165,1757109275852,-442.42594172,0.00041917,120]
[383769166,1757109275862,-425.71,0.00041917,120]
[383769167,1757109275871,-4723.58350117,0.00041917,120]
[383769168,1757109275881,-514.76858542,0.00041917,120]
[383769169,1757109275891,-446.41702105,0.00041917,120]
[383769170,1757109275903,-783.48299151,0.00041917,120]
[383769171,1757109275912,-425.76,0.00041917,120]
[383769172,1757109275922,-440.19,0.00041917,120]
[383769173,1757109275931,-483.22,0.00041917,120]
[383769174,1757109275942,-599.15,0.00041917,120]
[383769175,1757109275951,-483.34819317,0.00041917,120]
[383769176,1757109275961,-677.20466335,0.00041917,120]
[383769177,1757109275971,-1085.18424724,0.00041917,120]
[383769178,1757109275980,-3844.93969513,0.00041917,120]
[383769179,1757109275991,-1689.52478693,0.00041917,120]
[383769180,1757109276000,-421.31,0.00041917,120]
[383769181,1757109276015,-877.43745446,0.00041917,120]
[383769182,1757109276025,-537.9770078,0.00041917,120]
[383769183,1757109276035,-436.36768355,0.00041917,120]
[383769184,1757109276046,-479.61,0.00041917,120]
[383769185,1757109276057,-931.47819448,0.00041917,120]
[383769186,1757109276066,-2095.15,0.00041917,120]
[383769187,1757109276075,-434.31,0.00041917,120]
[383769188,1757109276086,-1265.21176132,0.00041917,120]
[383769189,1757109276097,-828.35,0.00041917,120]
[383769190,1757109276108,-490.4,0.00041917,120]
[383769191,1757109276118,-408.0280506,0.00041917,120]
[383769192,1757109276127,-445.50231091,0.00041917,120]
[383769193,1757109276138,-1988.76103909,0.00041917,120]
[383769194,1757109276147,-364.43070536,0.00041917,120]
[383769195,1757109276157,-531.64056127,0.00041917,120]
[383769196,1757109276166,-428.53717378,0.00041917,120]
[383769197,1757109276176,-401.39,0.00041917,120]
[383769198,1757109276186,-720.72143005,0.00041917,120]
[383769199,1757109276195,-150.89119148,0.00041917,120]
[383769200,1757109276204,-471.25,0.00041917,120]
[383769201,1757109276215,-2254.77996291,0.00041917,14]
[383769202,1757109276224,-786.89715262,0.00041917,120]
[383769203,1757109276234,-324.74186264,0.00041917,120]
[383769204,1757109276243,-1906.7545,0.00041917,120]
[383769205,1757109276253,-3337.94709481,0.00041917,120]
[383769206,1757109276264,-404.84,0.00041917,120]
[383769207,1757109276273,-512.13,0.00041917,120]
[383769208,1757109276283,-911.30041823,0.00041917,120]
[383769209,1757109276292,-516.64,0.00041917,120]
[383769210,1757109276303,-488.47855416,0.00041917,120]
[383769211,1757109276312,-1977.34,0.00041917,120]
[383769212,1757109276321,-224.80170197,0.00041917,120]
[383769213,1757109276331,-458.16,0.00041917,120]
[383769214,1757109276341,-527.02747042,0.00041917,120]
[383769215,1757109276350,-689.95,0.00041917,120]
[383769216,1757109276359,-697.64705597,0.00041917,120]
[383769217,1757109276369,-433.77,0.00041917,120]
[383769218,1757109276379,-419.24,0.00041917,120]
[383769219,1757109276390,-436.55274072,0.00041917,60]
[383769220,1757109276400,-6963.33436813,0.00041917,120]
[383769221,1757109276410,-1233.06802993,0.00041917,120]
[383769222,1757109276420,-628.4,0.00041943,30]
[383769223,1757109276429,-200.0,0.00041999,120]
[383769224,1757109276439,-50000.0,0.00042,42]
[383769225,1757109276449,-3042.0,0.00042,120]
[383769226,1757109276459,-352.68233314,0.00042,120]
[383769227,1757109276469,-941.74691074,0.00042,30]
[383769228,1757109276478,-799.21916674,0.00042,30]
[383769229,1757109276488,-18153.22800271,0.00042,30]
[383769230,1757109276498,-1678.85559209,0.00042,2]
[383769231,1757109276508,-253.95725554,0.00042,30]
[383769232,1757109276517,-300.0,0.00042,22]
[383769233,1757109276527,-1000.0,0.00042,60]
[383769234,1757109276537,-2500.0,0.00042,120]
[383769235,1757109276547,-10076.90553445,0.00042,120]
[383769236,1757109276556,-250.0,0.00042,120]
[383769237,1757109276566,-1375.0,0.00042,120]
[383769238,1757109276575,-389.0,0.00042,120]
[383769239,1757109276585,-2079.63,0.00042,14]
[383769240,1757109276594,-339.0,0.00042,10]
[383769241,1757109276604,-1347.3240085,0.0004201,2]
[383769242,1757109276614,-8146.83153659,0.00042091,7]
[383769243,1757109276623,-5000.0,0.00042091,8]
[383769244,1757109276633,-155.07,0.0004215,2]
[383769245,1757109276643,-1449.7475428,0.00042192,10]
[383769246,1757109276652,-3600.0,0.000422,2]
[383769247,1757109276662,-150.0,0.00042208,120]
[383769248,1757109276672,-371.0,0.0004221,2]
[383769249,1757109276681,-2400.0,0.0004226,60]
[383769250,1757109276692,-800.0,0.0004226,60]
[383769251,1757109276702,-536.7615046,0.00042398,39]
[383769252,1757109276712,-2993.03870178,0.000424,120]
[383769253,1757109276721,-212.0,0.0004244,30]
[383769254,1757109276731,-200.0,0.0004244,2]
[383769255,1757109276741,-214.0,0.0004244,2]
[383769256,1757109276751,-1987.61,0.00042465,120]
[383769257,1757109276761,-246.38640645,0.000425,120]
[383769258,1757109276770,-27344.28665691,0.000425,120]
[383769259,1757109276780,-150.0,0.00042523,120]
[383769260,1757109276790,-299.79,0.00042602,33]
[383769261,1757109276801,-1000.0,0.00042699,60]
[383769262,1757109276811,-150.0,0.00042701,120]
[383769263,1757109276820,-1087.0,0.0004275,30]
[383769264,1757109276830,-150.0,0.00042765,120]
[383769265,1757109276839,-1667.45641287,0.0004279,120]
[383769266,1757109276849,-2400.0,0.00042808,60]
[383769267,1757109276858,-800.0,0.00042808,60]
[383769268,1757109276868,-500.0,0.00042808,60]
[383769269,1757109276877,-982.60555689,0.0004282,2]
[383769270,1757109276886,-150.0,0.00042961,30]
[383769271,1757109276897,-1480.05755063,0.00042961,30]
[383769272,1757109276907,-50000.0,0.00043,43]
[383769273,1757109276919,-214.0,0.00043,7]
[383769274,1757109276930,-164.69831052,0.00043,120]
[383769275,1757109276939,-415.9528037,0.00043,120]
[383769276,1757109276949,-300.0,0.00043,24]
[383769277,1757109276959,-1000.0,0.00043,60]
[383769278,1757109276970,-2500.0,0.00043,120]
[383769279,1757109276981,-641246.2795085,0.00043,30]
[383769280,1757109276992,-665.48731247,0.00043,120]
[383769281,1757109277002,-285.78243024,0.00043,30]
[383769282,1757109277015,-7937.40869503,0.00043,120]
[383769283,1757109277026,-150.0,0.00043006,120]
[383769284,1757109277036,-298.26240599,0.00043013,114]
[383769285,1757109277046,-400.03476704,0.00043052,20]
[383769286,1757109277056,-150.0,0.00043097,120]
[383769287,1757109277068,-668.45369934,0.0004314,120]
[383769288,1757109277079,-155.0,0.00043151,90]
[383769289,1757109277089,-4124.99119,0.000432,30]
[383769290,1757109277100,-299.79,0.00043287,35]
[383769291,1757109277110,-1987.61,0.00043287,120]
[383769292,1757109277120,-1427.63061318,0.0004329,120]
[383769293,1757109277129,-176.33399816,0.00043309,30]
[383769294,1757109277139,-2400.0,0.00043356,60]
[383769295,1757109277148,-800.0,0.00043356,60]
[383769296,1757109277158,-363.0,0.0004337,2]
[383769297,1757109277167,-1126.62,0.00043381,2]
[383769298,1757109277176,-536.7615046,0.00043427,42]
[383769299,1757109277186,-9350.3989091,0.00043459,120]
[383769300,1757109277195,-150.0,0.00043461,120]
[383769301,1757109277204,-200.0,0.00043499,120]
[383769302,1757109277213,-30000.0,0.000435,120]
[383769303,1757109277223,-153.0,0.000435,120]
[383769304,1757109277232,-465.12382463,0.000435,120]
[383769305,1757109277241,-646.98663464,0.000435,120]
[383769306,1757109277250,-200000.0,0.000435,120]
[383769307,1757109277260,-150.0,0.00043551,120]
[383769308,1757109277269,-150.0,0.00043652,120]
[383769309,1757109277279,-150.0,0.00043671,120]
[383769310,1757109277288,-3138.43853794,0.00043699,60]
[383769311,1757109277297,-616.39163363,0.000437,120]
[383769312,1757109277306,-212.0,0.0004372,30]
[383769313,1757109277315,-200.0,0.0004372,2]
[383769314,1757109277324,-214.0,0.0004372,2]
[383769315,1757109277333,-491.47153887,0.000438,30]